bitfinex/quotes_ETHUSD_20250517
["timestamp","ask_amount","ask_price","bid_price","bid_amount"]
[1747463487108,6.0144941,2485.5,2485.1,0.8217]
[1747463487312,1.99104218,2485.5,2485.1,8.57393601]
[1747463487513,1.99104218,2485.5,2485.3,4.02365548]
[1747463487737,1.99104218,2485.5,2485.4,7.713]
[1747463488309,1.99104218,2485.5,2485.4,11.73649722]
[1747463488617,1.99104218,2485.5,2485.4,8.4891]
[1747463488838,1.99104218,2485.5,2485.4,12.51259722]
[1747463489038,1.99104218,2485.5,2485.4,14.2519778]
[1747463490550,1.99104218,2485.5,2485.4,2.51548058]
[1747463490846,1.99104218,2485.5,2485.4,8.4881]
[1747463491346,1.99104218,2485.5,2485.4,12.51159722]
[1747463494949,1.99104218,2485.5,2485.4,8.4861]
[1747463495350,1.99104218,2485.5,2485.4,12.50959722]
[1747463496553,1.99104218,2485.5,2485.4,8.4861]
[1747463496851,1.99104218,2485.5,2485.4,15.01939029]
[1747463497451,1.99104218,2485.5,2485.4,16.61939029]
[1747463497748,4.40285783,2486.7,2485.4,16.61939029]
[1747463497749,1.66419942,2486.7,2486.1,0.833]
[1747463497951,4.0217525,2486.5,2486.2,25.084]
[1747463498150,4.0217525,2486.5,2486.2,25.54722266]
[1747463498741,12.02162868,2486.6,2486.2,25.54722266]
[1747463498939,0.7784,2486.8,2486.4,4.02187485]
[1747463499216,4.02141562,2486.7,2486.2,29.56933804]
[1747463499421,0.7784,2487.0,2486.3,3.0402338]
[1747463499823,4.02137184,2486.8,2486.3,3.0402338]
[1747463500223,4.0214972,2486.7,2486.3,3.0402338]
[1747463500954,4.0214972,2486.7,2486.4,7.708]
[1747463501156,4.0214972,2486.7,2486.4,10.55158937]
[1747463501719,0.7784,2487.0,2486.5,4.85459494]
[1747463502156,4.02084662,2487.1,2486.6,4.02152258]
[1747463502527,4.02108769,2486.9,2486.5,0.833]
[1747463502858,4.02108769,2486.9,2486.6,1.70063846]
[1747463503242,4.02108769,2486.9,2486.7,7.705]
[1747463503243,4.02108372,2486.9,2486.7,7.705]
[1747463503435,4.02066274,2487.2,2486.7,11.72637912]
[1747463503634,0.7784,2487.3,2486.7,7.705]
[1747463503881,8.0,2487.2,2486.9,0.833]
[1747463504026,8.0,2487.2,2486.9,2.08891801]
[1747463504444,0.7784,2487.5,2486.9,6.1099124]
[1747463504629,4.02033865,2487.4,2486.9,6.10990639]
[1747463504847,4.02043423,2487.3,2486.9,2.08891801]
[1747463505761,4.02018113,2487.5,2487.0,4.02082678]
[1747463505938,4.02026384,2487.4,2487.1,17.98097448]
[1747463506141,4.01994619,2487.6,2487.2,7.704]
[1747463506142,4.0201005,2487.5,2487.2,7.704]
[1747463506849,4.02029479,2487.4,2487.2,7.704]
[1747463507051,4.02042375,2487.3,2487.2,7.704]
[1747463507761,4.02034197,2487.4,2487.2,7.704]
[1747463507959,4.02042375,2487.3,2487.2,7.704]
[1747463508169,4.02042375,2487.3,2487.2,7.703]
[1747463508554,4.02033879,2487.4,2487.2,7.703]
[1747463508744,4.02017435,2487.5,2487.2,7.703]
[1747463509354,4.02055441,2487.3,2487.1,17.37]
[1747463509662,8.7784,2487.8,2487.2,7.703]
[1747463509850,4.02027623,2487.4,2487.2,7.703]
[1747463510554,4.82348539,2487.2,2487.1,17.37]
[1747463510750,4.82348539,2487.2,2487.1,25.072]
[1747463511566,5.7078763,2487.2,2487.1,25.072]
[1747463514464,4.02058539,2487.2,2487.1,25.072]
[1747463514840,4.02050472,2487.3,2487.1,25.072]
[1747463515165,4.02035869,2487.4,2487.1,25.072]
[1747463517166,8.0,2487.5,2487.1,25.072]
[1747463517466,12.02010713,2487.5,2487.1,25.072]
[1747463517669,4.02029533,2487.4,2487.1,25.072]
[1747463518773,4.0204242,2487.3,2487.1,25.072]
[1747463518939,12.02010188,2487.5,2487.1,25.072]
[1747463519272,13.22211207,2487.5,2487.1,25.072]
[1747463519471,4.02035011,2487.4,2487.1,25.072]
[1747463519672,4.01722031,2487.4,2487.1,25.072]
[1747463519854,4.02043587,2487.3,2487.1,25.072]
[1747463520061,4.02058539,2487.2,2487.1,25.072]
[1747463520237,4.02052914,2487.3,2487.1,25.071]
[1747463520578,0.56328623,2488.1,2487.9,4.01931913]
[1747463520763,0.7543,2488.8,2488.0,25.8159]
[1747463520965,4.77236279,2488.8,2488.1,15.457]
[1747463521170,4.01816209,2488.7,2488.2,0.38223184]
[1747463521474,0.7543,2488.8,2488.3,7.701]
[1747463521475,4.01859082,2488.5,2488.3,7.701]
[1747463522042,4.01859082,2488.5,2488.2,0.38223184]
[1747463522275,4.01859082,2488.5,2488.3,7.7]
[1747463522680,4.01864651,2488.4,2488.2,0.38223184]
[1747463522974,4.01899262,2488.2,2488.0,17.364]
[1747463523177,4.01913106,2488.1,2488.0,17.364]
[1747463523473,12.01913106,2488.1,2488.0,25.064]
[1747463523990,4.01904988,2488.2,2488.0,25.064]
[1747463524181,12.01888138,2488.3,2488.0,25.064]
[1747463524474,4.01898752,2488.2,2488.0,25.064]
[1747463526273,4.01881234,2488.3,2488.0,17.364]
[1747463526477,12.01913106,2488.1,2488.0,17.364]
[1747463526647,12.01913106,2488.1,2488.0,25.063]
[1747463527178,12.01913106,2488.1,2488.0,17.364]
[1747463527478,12.01913106,2488.1,2488.0,25.063]
[1747463527479,12.84043106,2488.1,2488.0,25.063]
[1747463529670,12.84043106,2488.1,2488.0,17.364]
[1747463529993,15.57493927,2488.1,2488.0,17.364]
[1747463530597,4.0192926,2488.0,2487.9,7.699]
[1747463531303,12.0192926,2488.0,2487.9,7.699]
[1747463533805,8.0,2488.0,2487.9,7.699]
[1747463533987,12.0192926,2488.0,2487.9,7.699]
[1747463534187,4.01949076,2487.9,2487.5,0.7758]
[1747463534376,4.01949076,2487.9,2487.6,7.731]
[1747463534706,4.01949076,2487.9,2487.7,7.731]
[1747463535676,4.01949076,2487.9,2487.5,0.7758]
[1747463535907,4.01949076,2487.9,2487.8,7.731]
[1747463537086,4.0197049,2487.8,2487.5,0.7758]
[1747463537411,4.0197049,2487.8,2487.6,7.731]
[1747463537972,4.01953939,2487.9,2487.6,7.731]
[1747463538627,12.01937147,2488.0,2487.6,7.731]
[1747463538781,4.01948149,2487.9,2487.7,7.731]
[1747463539114,4.01919949,2488.1,2487.7,7.731]
[1747463540214,4.01919949,2488.1,2487.7,9.38565761]
[1747463541305,4.01930363,2488.0,2487.7,9.38565761]
[1747463541504,4.01930363,2488.0,2487.7,7.731]
[1747463541908,4.01958993,2487.9,2487.5,0.7758]
[1747463542212,4.01971607,2487.8,2487.6,7.731]
[1747463542619,4.01954763,2487.9,2487.6,7.731]
[1747463543190,4.01970637,2487.8,2487.6,7.731]
[1747463543515,4.02021179,2487.5,2487.3,17.359]
[1747463543683,4.0201005,2487.5,2487.4,7.731]
[1747463545431,9.5938254,2487.8,2487.4,7.731]
[1747463545432,12.02003045,2487.6,2487.4,7.731]
[1747463547185,4.02005404,2487.6,2487.3,17.359]
[1747463547412,12.02005404,2487.6,2487.5,7.731]
[1747463548081,12.01629849,2487.6,2487.5,7.731]
[1747463549420,8.0,2487.6,2487.5,7.731]
[1747463549721,12.01993889,2487.6,2487.5,7.731]
[1747463551010,12.01993889,2487.6,2487.3,17.359]
[1747463551209,12.01993889,2487.6,2487.5,7.731]
[1747463551420,8.0,2487.6,2487.5,7.731]
[1747463551723,4.01908065,2488.2,2487.6,4.01993889]
[1747463551896,4.01880802,2488.3,2487.7,4.01977294]
[1747463552099,4.01892016,2488.3,2487.9,0.8046]
[1747463552406,8.0,2488.2,2488.0,7.732]
[1747463552607,0.8056,2488.5,2488.0,7.732]
[1747463552808,4.01848503,2488.5,2488.0,8.98761758]
[1747463553014,6.00942429,2488.6,2488.1,4.01911267]
[1747463553517,6.00942429,2488.6,2488.2,17.74339551]
[1747463554031,1.99104218,2488.6,2488.2,17.74339551]
[1747463554327,4.82664325,2489.1,2488.3,4.80210534]
[1747463554528,4.82664325,2489.1,2488.4,2.41455009]
[1747463554725,8.0,2488.8,2488.5,7.732]
[1747463555025,7.99693595,2488.8,2488.5,7.732]
[1747463555400,4.01784006,2488.9,2488.5,7.732]
[1747463555587,4.01816209,2488.7,2488.3,0.7833]
[1747463555790,4.01841953,2488.6,2488.4,7.731]
[1747463555987,4.01832856,2488.6,2488.4,7.731]
[1747463556227,4.01823425,2488.7,2488.4,7.731]
[1747463556395,4.01823425,2488.7,2488.5,7.731]
[1747463556930,4.01832355,2488.6,2488.5,7.731]
[1747463557113,4.01832355,2488.6,2488.3,0.7833]
[1747463557421,4.01816875,2488.7,2488.4,7.731]
[1747463557821,4.01803998,2488.8,2488.3,7.01826818]
[1747463558031,12.01792389,2488.9,2488.4,7.73]
[1747463558324,12.01751832,2489.1,2488.5,0.8007]
[1747463558621,4.01751637,2489.1,2488.5,5.89384]
[1747463558920,8.0,2489.1,2488.5,5.89384]
[1747463559126,4.68408693,2489.2,2488.6,4.01832355]
[1747463559320,4.01751936,2489.1,2488.6,4.01832355]
[1747463559705,4.01770614,2489.0,2488.5,5.89380453]
[1747463559904,4.01770614,2489.0,2488.6,7.73]
[1747463560315,4.01770614,2489.0,2488.6,9.86208045]
[1747463560520,4.01785407,2488.9,2488.6,9.86208045]
[1747463560723,4.01800064,2488.8,2488.7,7.729]
[1747463562009,8.66666667,2489.2,2488.7,7.729]
[1747463562214,4.01782811,2489.0,2488.7,7.729]
[1747463562535,4.01788633,2488.9,2488.7,7.729]
[1747463563544,4.01800064,2488.8,2488.7,7.729]
[1747463564421,4.01792535,2488.9,2488.7,7.729]
[1747463564942,4.68408504,2489.2,2488.7,8.5019]
[1747463565145,4.01755237,2489.1,2488.7,9.3252]
[1747463565362,4.01768222,2489.0,2488.7,9.3252]
[1747463565868,4.01775587,2489.0,2488.7,9.3252]
[1747463566042,4.01761156,2489.1,2488.7,8.5523]
[1747463566667,4.01771989,2489.0,2488.7,8.5523]
[1747463567164,4.01763016,2489.1,2488.7,8.5523]
[1747463567764,4.01768191,2489.0,2488.7,8.5523]
[1747463570167,4.01786149,2488.9,2488.7,8.5523]
[1747463570976,4.01774658,2489.0,2488.7,8.5523]
[1747463572986,4.01762791,2489.1,2488.7,8.5523]
[1747463573684,4.0176932,2489.0,2488.7,8.5523]
[1747463575068,4.017863,2488.9,2488.7,8.5523]
[1747463575680,4.01768427,2489.0,2488.7,8.5523]
[1747463575884,4.01754979,2489.1,2488.7,9.56753]
[1747463576081,4.01754979,2489.1,2488.7,8.5523]
[1747463577997,4.01754979,2489.1,2488.8,17.351]
[1747463578491,0.66666667,2489.2,2488.8,17.351]
[1747463578652,0.66666667,2489.2,2489.0,4.0176369]
[1747463578858,0.66666667,2489.2,2488.9,4.84825876]
[1747463579075,0.66666667,2489.2,2488.9,8.24287901]
[1747463579695,0.66666667,2489.2,2488.9,4.22512025]
[1747463579983,0.66666667,2489.2,2488.9,8.24293897]
[1747463580682,0.66666667,2489.2,2488.9,4.22512025]
[1747463580882,0.66666667,2489.2,2489.0,7.694]
[1747463581688,0.66666667,2489.2,2488.8,21.36885018]
[1747463581689,4.68405841,2489.2,2489.1,7.694]
[1747463582302,12.68405841,2489.2,2489.1,7.694]
[1747463582689,8.66666667,2489.2,2489.1,7.694]
[1747463583996,12.68402164,2489.2,2489.1,7.694]
[1747463584191,8.66666667,2489.2,2489.1,7.694]
[1747463584600,12.68402164,2489.2,2489.1,7.694]
[1747463586910,4.01752463,2489.1,2488.8,17.351]
[1747463587116,4.01752463,2489.1,2488.9,7.694]
[1747463587318,4.01758672,2489.1,2488.8,17.351]
[1747463587475,12.01758672,2489.1,2489.0,7.694]
[1747463587674,8.0,2489.1,2489.0,7.694]
[1747463587973,0.66666667,2489.2,2489.0,7.694]
[1747463588719,0.66666667,2489.2,2489.0,10.60028255]
[1747463588921,0.66666667,2489.2,2489.1,0.7671]
[1747463589411,0.66666667,2489.2,2489.1,1.15045186]
[1747463593940,0.66666667,2489.2,2489.1,18.49945186]
[1747463594118,0.66666667,2489.2,2489.1,17.73235186]
[1747463594838,4.68402164,2489.2,2489.1,17.73235186]
[1747463595130,13.63409624,2489.2,2489.1,25.42335186]
[1747463595359,12.68402164,2489.2,2489.1,25.42335186]
[1747463595633,12.68402164,2489.2,2489.1,25.04]
[1747463600425,0.66666667,2489.2,2489.1,25.04]
[1747463601149,0.66666667,2489.2,2489.1,29.85901637]
[1747463601452,0.66666667,2489.2,2489.1,31.45901637]
[1747463601623,0.66666667,2489.2,2489.1,35.00667085]
[1747463603427,0.66666667,2489.2,2489.1,35.38903728]
[1747463604856,0.66666667,2489.2,2489.1,36.03093705]
[1747463607031,0.66666667,2489.2,2489.1,36.58093705]
[1747463607346,0.66666667,2489.2,2489.1,44.58093705]
[1747463607517,0.66666667,2489.2,2489.1,43.93903728]
[1747463608840,1.99104218,2490.3,2489.9,0.7996]
[1747463609071,4.01519333,2490.6,2490.1,4.01590165]
[1747463609628,1.99104218,2490.8,2490.1,0.7996]
[1747463610054,4.01519766,2490.6,2490.2,7.69]
[1747463610400,4.01523408,2490.6,2490.3,7.69]
[1747463612033,4.01527392,2490.5,2490.1,0.7996]
[1747463612361,4.01544449,2490.4,2490.2,7.689]
[1747463612556,4.01590297,2490.1,2490.0,17.346]
[1747463612855,4.01590297,2490.1,2490.0,25.035]
[1747463613436,4.01590297,2490.1,2490.0,17.346]
[1747463613656,4.01590297,2490.1,2490.0,25.035]
[1747463613878,4.01590297,2490.1,2490.0,17.346]
[1747463614167,4.01590297,2490.1,2490.0,25.035]
[1747463615352,4.01590297,2490.1,2490.0,17.346]
[1747463615564,4.01590297,2490.1,2490.0,25.035]
[1747463616255,9.41993025,2490.2,2490.0,25.035]
[1747463616563,4.01590297,2490.1,2490.0,25.035]
[1747463616959,12.01578777,2490.2,2490.0,25.035]
[1747463617366,4.01590297,2490.1,2490.0,25.035]
[1747463619860,12.01582691,2490.2,2490.0,25.035]
[1747463620067,4.01590297,2490.1,2490.0,25.035]
[1747463620641,12.0158071,2490.2,2490.0,25.035]
[1747463620875,4.01590297,2490.1,2490.0,25.035]
[1747463621975,4.01590297,2490.1,2490.0,17.346]
[1747463622170,4.01590297,2490.1,2490.0,25.035]
[1747463623837,5.43583322,2490.1,2490.0,17.346]
[1747463624040,5.43583322,2490.1,2490.0,25.035]
[1747463624867,4.01590297,2490.1,2490.0,25.035]
[1747463625187,8.0,2490.2,2490.0,25.035]
[1747463625538,4.01590297,2490.1,2490.0,25.035]
[1747463630499,12.0157731,2490.2,2490.0,25.035]
[1747463630691,4.01590297,2490.1,2490.0,25.035]
[1747463634396,15.95189184,2490.1,2490.0,17.346]
[1747463634594,4.01670951,2489.6,2489.5,0.47629809]
[1747463634805,14.20753976,2489.6,2489.5,8.16129809]
[1747463635775,14.20753976,2489.6,2489.5,7.685]
[1747463636315,13.43663976,2489.6,2489.5,7.685]
[1747463641134,4.01719358,2489.3,2489.2,17.343]
[1747463641322,4.01719358,2489.3,2489.2,25.029]
[1747463642145,4.01712265,2489.4,2489.2,25.029]
[1747463642837,4.01687484,2489.5,2489.2,27.93366679]
[1747463643205,4.01687484,2489.5,2489.3,7.686]
[1747463643607,4.01719358,2489.3,2489.2,17.343]
[1747463643844,4.01719358,2489.3,2489.2,25.029]
[1747463644144,13.43712383,2489.3,2489.2,25.029]
[1747463644348,15.25969943,2489.3,2489.2,25.029]
[1747463644646,16.03129943,2489.3,2489.2,25.03]
[1747463644843,23.71429943,2489.3,2489.2,25.03]
[1747463646143,14.20872383,2489.3,2489.2,25.03]
[1747463646346,8.0,2489.3,2489.2,25.03]
[1747463647165,4.01673859,2489.6,2489.2,25.03]
[1747463647441,4.01694139,2489.5,2489.2,25.03]
[1747463647844,4.01719358,2489.3,2489.2,25.03]
[1747463648010,13.43712383,2489.3,2489.2,25.03]
[1747463648712,14.20862383,2489.3,2489.2,17.343]
[1747463648920,14.20862383,2489.3,2489.2,25.03]
[1747463649418,16.03119225,2489.3,2489.2,25.03]
[1747463649613,23.71419225,2489.3,2489.2,25.03]
[1747463650151,4.01816209,2488.7,2488.6,0.7557]
[1747463650337,4.01790169,2488.9,2488.6,8.4427]
[1747463650548,4.01800423,2488.8,2488.6,11.06929981]
[1747463651138,4.01790128,2488.9,2488.6,11.06929981]
[1747463652872,4.01801299,2488.8,2488.6,11.06929981]
[1747463654037,4.01791191,2488.9,2488.6,11.06929981]
[1747463654839,4.01800342,2488.8,2488.6,11.06929981]
[1747463655264,4.01792276,2488.9,2488.6,11.06929981]
[1747463655637,4.0180179,2488.8,2488.6,11.06929981]
[1747463656363,9.41993025,2489.0,2488.6,11.06929981]
[1747463656660,4.01787795,2488.9,2488.6,11.06929981]
[1747463658954,13.4376913,2489.0,2488.6,11.06929981]
[1747463659158,4.01787005,2488.9,2488.6,11.06929981]
[1747463660462,4.01787005,2488.9,2488.6,8.4427]
[1747463664477,4.01800838,2488.8,2488.6,8.4427]
[1747463667700,4.01816209,2488.7,2488.5,17.347]
[1747463667868,5.4382538,2488.6,2488.5,17.347]
[1747463668201,5.4382538,2488.6,2488.5,25.03]
[1747463668595,14.2464538,2488.6,2488.5,25.03]
[1747463669195,13.4382538,2488.6,2488.5,25.03]
[1747463671508,13.4382538,2488.6,2488.5,17.347]
[1747463671680,13.4382538,2488.6,2488.5,25.03]
[1747463675210,8.0,2488.6,2488.5,25.858]
[1747463675374,8.0,2488.6,2488.5,28.84566543]
[1747463675702,8.0,2488.6,2488.5,25.858]
[1747463677509,12.01832355,2488.6,2488.5,25.858]
[1747463677705,14.2474538,2488.6,2488.5,25.03]
[1747463678593,12.01832355,2488.6,2488.5,25.03]
[1747463681287,12.01832355,2488.6,2488.5,17.347]
[1747463681487,12.01832355,2488.6,2488.5,25.031]
[1747463681916,12.01832355,2488.6,2488.5,17.347]
[1747463682100,12.01832355,2488.6,2488.5,25.031]
[1747463683016,8.0,2488.6,2488.5,25.031]
[1747463683518,12.01832355,2488.6,2488.5,25.031]
[1747463690817,12.01832355,2488.6,2488.5,7.684]
[1747463691434,4.01880802,2488.3,2488.1,18.953]
[1747463691656,4.01880802,2488.3,2488.2,7.678]
[1747463691795,13.43873827,2488.3,2488.2,7.678]
[1747463692134,15.03738425,2488.3,2488.2,7.678]
[1747463692636,4.01913106,2488.1,2488.0,0.47629809]
[1747463692840,5.43906131,2488.1,2488.0,0.47629809]
[1747463693139,13.43906131,2488.1,2488.0,0.47629809]
[1747463693295,16.28195721,2488.1,2488.0,0.47629809]
[1747463693496,13.43906131,2488.1,2488.0,0.47629809]
[1747463693899,14.23116131,2488.1,2488.0,0.47629809]
[1747463694509,4.01945415,2487.9,2487.7,7.678]
[1747463694716,4.01961572,2487.8,2487.7,7.678]
[1747463694899,4.0201005,2487.5,2487.1,1.29749809]
[1747463695094,5.44003075,2487.5,2487.4,25.031]
[1747463695929,5.44003075,2487.5,2487.4,17.353]
[1747463696226,5.44003075,2487.5,2487.4,25.032]
[1747463697396,5.44003075,2487.5,2487.4,17.353]
[1747463697593,13.44003075,2487.5,2487.4,25.032]
[1747463699234,13.44003075,2487.5,2487.4,17.353]
[1747463699442,13.44003075,2487.5,2487.4,25.032]
[1747463700749,9.41993025,2487.5,2487.4,25.032]
[1747463701034,8.0,2487.5,2487.4,25.032]
[1747463701658,0.7921,2488.0,2487.4,27.61732]
[1747463701869,9.88803025,2488.2,2487.4,27.61732]
[1747463702134,8.0,2488.0,2487.5,4.84124606]
[1747463702344,0.7921,2488.4,2487.4,27.61732]
[1747463702345,13.11442007,2488.5,2487.8,0.8212]
[1747463702521,4.01874332,2488.4,2487.9,7.68]
[1747463702701,4.01881798,2488.3,2487.9,7.68]
[1747463702903,8.0,2488.4,2488.0,4.01926766]
[1747463703099,5.43850513,2488.5,2488.2,0.8212]
[1747463703325,13.43850513,2488.5,2488.2,0.8212]
[1747463703531,5.43850513,2488.5,2488.2,0.8212]
[1747463705020,1.99104218,2488.6,2488.5,0.8212]
[1747463705219,1.99104218,2488.6,2488.2,0.48404002]
[1747463705220,4.0186049,2488.5,2488.3,17.357]
[1747463705530,1.99104218,2488.6,2488.3,17.357]
[1747463705531,5.43857676,2488.4,2488.3,17.357]
[1747463705839,5.43857676,2488.4,2488.3,25.037]
[1747463706039,13.43857676,2488.4,2488.3,25.037]
[1747463706652,7.42932521,2488.6,2488.3,25.037]
[1747463706949,8.0,2488.5,2488.3,25.037]
[1747463707321,8.0,2488.6,2488.4,0.7582]
[1747463708160,13.11319109,2488.7,2488.4,0.7582]
[1747463708161,9.41993025,2488.7,2488.4,0.7582]
[1747463708448,1.41993025,2488.7,2488.4,0.7582]
[1747463708817,8.0,2488.8,2488.4,0.7582]
[1747463709032,4.01757166,2489.1,2488.5,6.72373611]
[1747463709033,1.41993025,2489.1,2488.5,6.72373611]
[1747463709202,1.41993025,2489.1,2488.7,4.01806598]
[1747463709409,1.41993025,2489.1,2488.8,7.679]
[1747463709640,1.41993025,2489.1,2488.6,0.7582]
[1747463709853,8.0,2489.2,2488.6,0.7582]
[1747463709854,4.01800064,2488.8,2488.6,0.7582]
[1747463710033,5.4381801,2488.7,2488.3,18.1152]
[1747463710233,4.01833631,2488.6,2488.4,2.21341456]
[1747463710412,4.01833631,2488.6,2488.5,7.679]
[1747463711151,5.43816379,2488.7,2488.5,7.679]
[1747463711314,5.43817245,2488.7,2488.5,7.679]
[1747463711712,8.0,2488.5,2488.3,17.357]
[1747463711963,9.41993025,2488.5,2488.4,7.679]
[1747463712145,13.4385182,2488.5,2488.4,7.679]
[1747463712841,4.01864651,2488.4,2488.3,17.357]
[1747463713044,13.43849989,2488.5,2488.3,25.036]
[1747463713353,1.41993025,2488.7,2488.3,27.61542]
[1747463713530,13.43818834,2488.7,2488.3,27.61542]
[1747463713733,4.01855545,2488.5,2488.3,27.61542]
[1747463713923,4.01836646,2488.6,2488.3,27.61542]
[1747463714449,4.0185276,2488.5,2488.3,27.61542]
[1747463715556,4.01864651,2488.4,2488.3,25.036]
[1747463716761,1.41993025,2488.5,2488.3,25.036]
[1747463718025,13.43812154,2488.7,2488.3,25.036]
[1747463720450,4.01838627,2488.6,2488.3,25.036]
[1747463720662,1.41993025,2488.5,2488.3,25.036]
[1747463720822,5.43850245,2488.5,2488.3,20.33833014]
[1747463721022,5.43849273,2488.5,2488.4,7.672]
[1747463723954,5.43527163,2488.5,2488.4,7.672]
[1747463725673,5.43527163,2488.5,2488.3,17.357]
[1747463725674,4.01864651,2488.4,2488.3,17.357]
[1747463725855,4.01864651,2488.4,2488.3,25.029]
[1747463726831,6.24807203,2488.5,2488.3,25.029]
[1747463727033,5.43527203,2488.5,2488.3,25.029]
[1747463727566,1.41670915,2488.5,2488.3,25.029]
[1747463727766,1.41670915,2488.5,2488.3,28.91590587]
[1747463728065,6.2349542,2488.9,2488.4,4.01856417]
[1747463728241,4.01769322,2489.0,2488.6,0.8221]
[1747463728440,4.01769322,2489.0,2488.6,1.70800952]
[1747463728751,13.43752835,2489.1,2488.6,5.72632016]
[1747463728954,9.41993025,2489.1,2488.6,1.70800952]
[1747463729262,6.93779339,2488.9,2488.6,1.70800952]
[1747463729467,1.41993025,2488.7,2488.4,0.8221]
[1747463729662,1.41993025,2488.7,2488.5,7.672]
[1747463730566,5.43815092,2488.7,2488.6,7.672]
[1747463731066,9.41993025,2488.7,2488.3,18.957]
[1747463731365,6.23567676,2488.4,2488.3,17.357]
[1747463731569,6.23567676,2488.4,2488.3,25.029]
[1747463733539,15.26109294,2488.4,2488.3,25.029]
[1747463733951,15.25506702,2488.4,2488.3,25.029]
[1747463734147,15.25506702,2488.4,2488.3,7.672]
[1747463734337,4.01961572,2487.8,2487.7,0.47629809]
[1747463734544,13.43954597,2487.8,2487.7,8.14829809]
[1747463742582,15.26722735,2487.8,2487.7,0.47629809]
[1747463742787,16.56982735,2487.8,2487.7,0.47629809]
[1747463743668,12.01993889,2487.6,2487.5,7.673]
[1747463743875,4.02051179,2487.3,2487.0,0.7895]
[1747463744073,4.01523135,2487.3,2487.1,7.674]
[1747463744247,1.41993025,2487.4,2487.1,10.25605]
[1747463744451,8.0,2487.4,2487.1,10.25605]
[1747463744651,12.02033396,2487.4,2487.1,2.58205]
[1747463744864,12.02033396,2487.4,2487.2,7.674]
[1747463744865,9.41993025,2487.4,2487.2,7.674]
[1747463745363,0.7526,2487.8,2487.3,4.80989396]
[1747463745364,4.01969981,2487.8,2487.3,4.80989396]
[1747463745548,1.41993025,2487.9,2487.4,2.07808734]
[1747463745771,1.41993025,2488.1,2487.5,4.02001267]
[1747463745975,1.41993025,2487.9,2487.4,3.6378894]
[1747463746287,4.01962738,2487.8,2487.4,3.6378894]
[1747463746496,5.43946359,2487.9,2487.4,7.65804725]
[1747463746786,5.43973212,2487.7,2487.5,8.43980473]
[1747463747482,1.41993025,2487.7,2487.5,8.43980473]
[1747463747660,12.01928372,2488.1,2487.6,4.80942862]
[1747463747863,1.41993025,2488.1,2487.6,0.7895]
[1747463748065,9.41993025,2488.1,2487.7,0.92293047]
[1747463748254,4.0192926,2488.0,2487.7,0.92293047]
[1747463749076,9.41993025,2488.1,2487.7,0.92293047]
[1747463749077,13.43908005,2488.1,2487.7,0.92293047]
[1747463749258,12.01905514,2488.2,2487.8,0.7895]
[1747463749956,4.01913455,2488.1,2487.8,0.7895]
[1747463750185,4.01913455,2488.1,2487.8,1.52272878]
[1747463750553,4.01913455,2488.1,2487.8,18.88072878]
[1747463750965,12.019028,2488.2,2487.8,18.88072878]
[1747463751164,9.41993025,2488.3,2487.8,22.90019528]
[1747463751659,1.41993025,2488.3,2487.8,22.90019528]
[1747463751849,5.4388175,2488.3,2487.9,2.38231257]
[1747463752049,5.4388175,2488.3,2488.0,7.669]
[1747463753494,1.41993025,2488.1,2487.9,2.38231257]
[1747463753657,1.41993025,2488.1,2488.0,7.668]
[1747463754387,1.41993025,2488.3,2488.0,7.668]
[1747463754602,1.41993025,2488.3,2488.0,10.96304799]
[1747463754760,8.0,2488.4,2488.1,0.7841]
[1747463755593,13.10556723,2488.5,2488.1,0.7841]
[1747463755792,11.68563698,2488.5,2488.1,0.7841]
[1747463756088,9.08693025,2488.5,2488.1,6.40320751]
[1747463756391,9.08693025,2488.5,2488.2,2.13854841]
[1747463756695,13.43816026,2488.7,2488.3,0.7841]
[1747463757599,4.01752688,2489.1,2488.4,4.01855678]
[1747463757600,4.01757513,2489.1,2488.4,4.01855678]
[1747463757779,5.43777991,2488.9,2488.5,7.668]
[1747463758100,13.43777991,2488.9,2488.5,7.668]
[1747463758397,1.41993025,2489.1,2488.7,0.7583]
[1747463758693,9.41993025,2489.1,2488.7,0.7583]
[1747463758864,4.01800064,2488.8,2488.7,0.7583]
[1747463759066,4.01800064,2488.8,2488.7,7.667]
[1747463759299,5.43782626,2488.9,2488.7,7.667]
[1747463759976,4.01800064,2488.8,2488.7,7.667]
[1747463760202,4.01824616,2488.7,2488.3,2.3583]
[1747463760387,5.43817641,2488.7,2488.4,8.30471811]
[1747463761068,1.41993025,2488.7,2488.4,8.30471811]
[1747463762006,1.41993025,2488.7,2488.4,12.3232762]
[1747463762201,1.41993025,2488.7,2488.5,4.01836263]
[1747463762400,1.41993025,2488.9,2488.7,0.8274]
[1747463762695,1.41993025,2489.1,2488.7,5.73197086]
[1747463763806,5.43745539,2489.1,2488.7,1.71382009]
[1747463764001,1.41993025,2488.9,2488.7,0.8274]
[1747463764308,4.01800064,2488.8,2488.5,0.8274]
[1747463764516,5.43819151,2488.7,2488.6,7.667]
[1747463764810,4.01896953,2488.2,2488.1,0.47629809]
[1747463764987,5.43889978,2488.2,2488.1,0.47629809]
[1747463765311,13.43889978,2488.2,2488.1,8.14229809]
[1747463765480,14.26069978,2488.2,2488.1,8.14229809]
[1747463765905,14.26069978,2488.2,2488.1,0.47629809]
[1747463766087,16.85495317,2488.2,2488.1,0.47629809]
[1747463766405,13.43889978,2488.2,2488.0,7.666]
[1747463766589,4.01913106,2488.1,2488.0,7.666]
[1747463767312,4.01939962,2488.0,2487.5,2.4274]
[1747463767480,4.01939962,2488.0,2487.9,7.666]
[1747463767680,5.43932987,2488.0,2487.9,7.666]
[1747463768606,15.26735596,2488.0,2487.9,7.666]
[1747463770315,15.26735596,2488.0,2487.1,1.6]
[1747463770316,4.02058539,2487.2,2487.1,18.1664]
[1747463770520,4.02058539,2487.2,2487.1,25.021]
[1747463770738,5.44051564,2487.2,2487.1,25.021]
[1747463770888,1.41993025,2487.2,2487.1,25.021]